bitfinex/quotes_ETHUSD_20220117
["timestamp","ask_amount","ask_price","bid_price","bid_amount"]
[1642421581989,4.0000794,3246.1,3246.0,0.0096632]
[1642421582185,4.0000794,3246.1,3245.4,1.5404007]
[1642421582186,3.9,3246.0,3245.4,1.5404007]
[1642421582382,3.9,3246.0,3245.0,3.8509]
[1642421582383,9.02631638,3246.0,3245.0,1.54063]
[1642421582577,0.438,3245.9,3244.6,2.17067939]
[1642421582778,0.738,3245.9,3244.6,2.94114939]
[1642421582980,0.00170527,3245.8,3245.1,0.00227369]
[1642421583177,0.438,3245.7,3245.1,0.00227369]
[1642421583377,0.43913685,3245.7,3245.1,0.00227369]
[1642421584578,0.43913685,3245.7,3245.2,0.07686634]
[1642421584786,0.43913685,3245.7,3245.1,0.00227369]
[1642421584979,0.73913685,3245.7,3245.3,0.00113684]
[1642421585182,0.98681909,3245.6,3245.0,0.00284211]
[1642421585379,0.98681909,3245.6,3244.9,0.00341054]
[1642421585380,1.28681909,3245.6,3244.9,0.00341054]
[1642421585812,1.28681909,3245.6,3245.0,0.08985414]
[1642421586012,0.98681909,3245.6,3245.0,0.77037]
[1642421586212,0.98681909,3245.6,3245.1,0.08501095]
[1642421586614,0.98681909,3245.6,3245.3,0.08245713]
[1642421586815,0.98681909,3245.6,3245.2,0.00170527]
[1642421587419,1.28681909,3245.6,3245.2,0.00170527]
[1642421588217,1.28681909,3245.6,3245.4,0.0892442]
[1642421588418,0.98681909,3245.6,3245.3,2.92788338]
[1642421588821,0.00113685,3245.7,3245.4,17.4]
[1642421589019,0.00113685,3245.7,3245.4,17.45210811]
[1642421589218,0.00113685,3245.7,3245.4,17.7]
[1642421589477,0.00113685,3245.7,3245.5,0.07941869]
[1642421589667,3.0000794,3246.1,3245.6,21.85]
[1642421589868,1.49157594,3246.2,3245.7,23.62799233]
[1642421590082,4.2818,3246.6,3245.9,1.5401191]
[1642421590083,0.00170527,3246.0,3245.9,1.5401191]
[1642421590268,0.00170527,3246.0,3245.9,20.73719003]
[1642421590470,0.00454739,3246.5,3245.9,21.03719003]
[1642421590668,0.00454739,3246.5,3246.4,8.65186537]
[1642421590869,1.66851804,3246.6,3246.4,1.15186537]
[1642421591468,1.49157594,3247.0,3246.4,1.15186537]
[1642421591868,0.00625266,3246.8,3246.4,1.15186537]
[1642421592268,0.00568423,3246.7,3246.5,0.06820073]
[1642421592674,0.00511581,3246.6,3246.4,1.15186537]
[1642421592870,0.00511581,3246.6,3246.0,1.54012]
[1642421593071,0.00454739,3246.5,3246.0,1.54012]
[1642421593515,0.00397896,3246.4,3246.1,0.7700503]
[1642421593715,0.00397896,3246.4,3246.2,0.08120993]
[1642421593914,4.3012,3247.1,3246.3,25.06848878]
[1642421593915,1.49157594,3246.9,3246.3,25.06848878]
[1642421594118,1.49157594,3246.9,3246.3,25.36848878]
[1642421594919,1.49157594,3246.9,3246.8,1.13705884]
[1642421595115,0.0073895,3247.0,3246.8,1.13705884]
[1642421595320,0.00682108,3246.9,3246.8,1.13705884]
[1642421595820,1.49157594,3247.3,3247.0,0.86589095]
[1642421596017,1.49157594,3247.3,3247.0,1.8758759]
[1642421596217,0.00170527,3247.2,3247.0,1.8758759]
[1642421596520,0.00113685,3247.1,3247.0,1.8758759]
[1642421596717,0.00113685,3247.1,3247.0,16.0758759]
[1642421596977,0.00113685,3247.1,3247.0,18.90397357]
[1642421597168,1.49157594,3247.4,3247.1,14.66976]
[1642421597468,0.00113684,3247.3,3247.1,14.66976]
[1642421597872,0.00113684,3247.3,3247.1,15.45869573]
[1642421598868,0.00113684,3247.3,3247.1,16.97289151]
[1642421599269,0.00113684,3247.3,3247.1,15.45869573]
[1642421599470,0.00113684,3247.3,3247.1,14.68894573]
[1642421599871,0.00113684,3247.3,3247.1,13.91918573]
[1642421600939,0.00113684,3247.3,3247.1,14.68899573]
[1642421601436,0.00113684,3247.3,3247.1,15.45879323]
[1642421609816,2.49157594,3248.0,3247.2,14.7]
[1642421610017,1.49157594,3248.0,3247.3,1.52133239]
[1642421610217,1.49157594,3248.1,3247.3,1.52133239]
[1642421611219,5.5088,3248.2,3247.4,19.95]
[1642421611418,4.2914,3248.2,3247.9,2.21765574]
[1642421611617,0.00397897,3248.0,3247.9,2.21765574]
[1642421612564,0.00397897,3248.0,3247.9,2.21766824]
[1642421612967,1.66851804,3248.4,3248.0,15.3]
[1642421613168,1.66851804,3248.4,3248.1,0.09765677]
[1642421613366,0.00170527,3248.3,3248.0,15.3]
[1642421613574,0.00170527,3248.3,3248.1,0.06744929]
[1642421613772,1.49157594,3248.6,3248.5,1.40050642]
[1642421613968,1.49157594,3248.6,3247.8,3.0785436]
[1642421614167,0.00170527,3248.5,3247.9,0.76961]
[1642421614369,0.00170527,3248.5,3247.9,0.00170527]
[1642421614569,0.00113684,3248.4,3248.0,0.00113685]
[1642421614771,0.00113684,3248.4,3247.9,0.00170527]
[1642421614974,5.72489521,3248.7,3247.9,0.00170527]
[1642421614975,6.02773732,3248.7,3247.9,0.00170527]
[1642421615470,0.00227369,3248.6,3247.9,0.06411032]
[1642421615730,0.00227369,3248.6,3247.9,0.00170527]
[1642421615920,0.00227369,3248.6,3248.0,0.00113685]
[1642421616224,0.00227369,3248.6,3247.6,0.00341054]
[1642421616822,1.49157594,3248.5,3247.8,0.76973]
[1642421617220,0.00113684,3248.4,3247.9,0.00170527]
[1642421617822,4.11490938,3248.4,3248.2,0.01916865]
[1642421618025,1.0,3248.3,3248.2,0.01916865]
[1642421618321,1.438,3248.3,3248.2,0.01916865]
[1642421618520,0.738,3248.3,3248.2,0.01916865]
[1642421619222,0.738,3248.3,3248.2,0.01767372]
[1642421620070,0.438,3248.3,3248.2,0.01767372]
[1642421620268,0.438,3248.3,3248.2,8.125e-05]
[1642421620468,4.92227437,3248.3,3248.2,8.125e-05]
[1642421620668,6.08767437,3248.3,3248.2,8.125e-05]
[1642421620869,1.6034,3248.3,3248.2,8.125e-05]
[1642421621069,19.5934,3248.3,3248.2,8.125e-05]
[1642421621273,1.9034,3248.3,3248.2,8.125e-05]
[1642421621469,2.9034,3248.3,3248.2,8.125e-05]
[1642421622073,8.40885462,3248.3,3248.2,8.125e-05]
[1642421622371,26.39885462,3248.3,3248.2,8.125e-05]
[1642421622671,26.54543307,3248.3,3248.2,8.125e-05]
[1642421622870,26.54543307,3248.3,3247.6,0.00341054]
[1642421622871,0.77015,3248.1,3247.6,0.00341054]
[1642421623071,0.438,3248.0,3247.7,0.07687041]
[1642421623319,0.738,3248.0,3247.6,0.00341054]
[1642421623520,4.2546,3247.9,3247.8,0.0022737]
[1642421623718,5.9275,3247.9,3247.6,0.00341054]
[1642421624719,6.5275,3247.9,3247.7,0.0840013]
[1642421624919,6.5275,3247.9,3247.6,0.00341054]
[1642421624920,1.0,3247.8,3247.6,0.00341054]
[1642421625120,1.438,3247.8,3247.5,0.02157811]
[1642421627069,1.438,3247.8,3247.6,0.05667413]
[1642421627470,1.438,3247.8,3247.7,0.00284212]
[1642421627871,1.438,3247.8,3247.6,0.00341054]
[1642421628269,1.738,3247.8,3247.6,0.00341054]
[1642421628469,1.738,3247.8,3247.6,0.06421306]
[1642421628669,1.438,3247.8,3247.6,0.06421306]
[1642421628869,1.738,3247.8,3247.6,0.00341054]
[1642421629269,1.738,3247.8,3247.6,0.07307722]
[1642421629669,1.738,3247.8,3247.6,0.00341054]
[1642421629879,8.23414513,3247.7,3247.6,0.00341054]
[1642421630071,8.23414513,3247.7,3246.4,1.5402]
[1642421630072,10.71384513,3247.7,3246.4,1.5402]
[1642421630271,6.6,3247.6,3245.7,2.30998]
[1642421630489,0.438,3247.5,3246.5,0.00625266]
[1642421630745,0.738,3247.5,3246.5,0.00625266]
[1642421630930,0.738,3247.5,3246.0,0.00909478]
[1642421630931,17.99,3247.4,3246.0,0.00909478]
[1642421631131,1.438,3247.3,3246.6,0.00568424]
[1642421631329,19.428,3247.3,3246.0,0.00909478]
[1642421631530,0.3,3247.2,3246.0,0.00909478]
[1642421631734,0.738,3247.2,3246.0,0.00909478]
[1642421632332,0.738,3247.2,3246.1,0.77018]
[1642421632531,0.738,3247.2,3246.2,0.08406183]
[1642421632830,1.0,3246.8,3246.3,0.00738951]
[1642421633033,1.6,3246.8,3246.3,0.00738951]
[1642421633231,1.6,3246.8,3246.2,0.00795793]
[1642421633932,3.1251,3246.8,3246.2,0.00795793]
[1642421634131,3.1251,3246.8,3246.0,0.00909478]
[1642421634338,1.98414513,3246.7,3246.0,0.00909478]
[1642421634972,1.98414513,3246.7,3246.1,0.09795791]
[1642421635168,1.98414513,3246.7,3246.0,0.00909478]
[1642421635368,1.98414513,3246.7,3246.2,0.00795793]
[1642421635570,1.98414513,3246.7,3246.0,0.00909478]
[1642421635770,1.0,3246.3,3246.0,0.00909478]
[1642421636771,2.1193,3246.3,3246.0,0.00909478]
[1642421636976,2.4193,3246.3,3246.0,0.00909478]
[1642421637169,5.16004513,3246.2,3245.7,0.01080005]
[1642421637671,1.0,3246.1,3245.7,0.01080005]
[1642421637870,1.0,3246.1,3245.8,0.05815286]
[1642421637871,1.3,3246.1,3245.8,0.05815286]
[1642421638070,2.038,3246.1,3245.7,0.01080005]
[1642421638322,2.038,3246.1,3245.9,0.0096632]
[1642421638519,2.038,3246.1,3245.3,0.01307374]
[1642421638721,7.48905334,3246.1,3245.3,0.01307374]
[1642421638920,1.0,3245.7,3245.3,0.01307374]
[1642421639126,1.3,3245.7,3245.3,0.01307374]
[1642421639321,1.3,3245.7,3245.4,0.05633061]
[1642421639525,1.3,3245.7,3245.1,0.01421059]
[1642421639722,0.438,3245.6,3245.5,0.0119369]
[1642421639921,0.438,3245.6,3245.1,0.01421059]
[1642421640523,1.42214513,3245.6,3245.1,0.01421059]
[1642421640723,1.42214513,3245.6,3245.2,0.07101494]
[1642421640922,1.42214513,3245.6,3245.1,0.01421059]
[1642421640923,2.42214513,3245.6,3245.1,0.01421059]
[1642421641125,2.42214513,3245.6,3245.3,0.01307374]
[1642421641422,2.42214513,3245.6,3245.2,0.09795791]
[1642421641626,0.98414513,3245.6,3245.3,0.77042]
[1642421641824,0.02757859,3246.0,3245.5,17.51293349]
[1642421642088,0.02757859,3246.0,3245.8,1.28217822]
[1642421642274,0.02757859,3246.0,3245.6,0.01136847]
[1642421642472,0.02757859,3246.0,3245.5,1.55320349]
[1642421642473,0.02757859,3246.0,3245.9,0.0096632]
[1642421642772,0.02757859,3246.0,3245.6,0.01136847]
[1642421643772,0.02757859,3246.0,3245.7,0.08538734]
[1642421644171,0.02757859,3246.0,3245.8,0.01023163]
[1642421644577,0.02757859,3246.0,3245.8,1.30071702]
[1642421644774,0.02757859,3246.0,3245.8,1.29048539]
[1642421645073,1.0,3246.1,3245.9,0.7799132]
[1642421645472,1.0,3246.1,3246.0,4.50909478]
[1642421646720,1.0,3246.1,3246.0,0.00909478]
[1642421647720,1.03343519,3246.1,3246.0,0.00909478]
[1642421649600,4.20369382,3246.2,3246.0,3.78058931]
[1642421649787,0.02779382,3246.2,3246.0,5.62072121]
[1642421649981,1.49018939,3246.9,3246.1,4.31632161]
[1642421650184,1.49018939,3246.9,3246.3,0.76999]
[1642421650381,1.49018939,3246.9,3246.4,5.33486651]
[1642421650592,1.49018939,3246.9,3246.7,1.16470705]
[1642421650782,1.49018939,3246.9,3246.7,1.93468705]
[1642421650981,1.49018939,3246.9,3246.8,0.00454739]
[1642421651184,1.0,3247.0,3246.8,0.00454739]
[1642421652082,1.0,3247.0,3246.7,0.00511582]
[1642421652288,1.0,3247.0,3246.8,0.08092578]
[1642421652489,4.2366,3247.1,3246.8,0.08092578]
[1642421652686,4.2366,3247.1,3247.0,1.26173223]
[1642421652884,2.70228939,3247.6,3247.0,21.24616898]
[1642421652885,1.49018939,3247.6,3247.0,21.24616898]
[1642421653087,1.49018939,3247.6,3247.0,21.24957953]
[1642421653317,1.49018939,3247.6,3247.1,0.00284212]
[1642421653718,1.49018939,3247.6,3247.5,1.20857258]
[1642421653921,1.49018939,3247.6,3247.4,2.30938]
[1642421654923,1.51808091,3247.6,3247.4,2.30938]
[1642421655118,0.02789152,3247.6,3247.4,3.58242993]
[1642421656020,0.02789152,3247.6,3247.4,6.48242993]
[1642421656821,0.02789152,3247.6,3247.4,7.36672078]
[1642421657068,0.02789152,3247.6,3247.4,3.58242993]
[1642421657869,0.02789152,3247.6,3247.4,3.60077277]
[1642421658472,1.0,3247.7,3247.5,4.8]
[1642421658672,1.0,3247.7,3247.5,7.1091201]
[1642421658873,4.3144,3248.2,3247.5,7.1091201]
[1642421659072,4.3144,3248.2,3247.6,0.0703979]
[1642421659274,0.00284211,3248.1,3247.7,0.76966]
[1642421659473,1.49018939,3248.3,3247.9,1.37593563]
[1642421659772,4.62500185,3248.8,3248.1,0.09722849]
[1642421659977,4.62500185,3248.8,3248.0,18.7]
[1642421660173,0.00170527,3248.4,3248.0,18.7]
[1642421660473,0.00113685,3248.3,3248.1,0.7695]
[1642421660918,1.49226088,3248.7,3248.1,0.7695]
[1642421661118,1.49226088,3248.7,3248.2,3.15569772]
[1642421661319,1.49226088,3248.7,3248.2,3.0778897]
[1642421661320,0.00284212,3248.6,3248.2,3.0778897]
[1642421661517,0.00284212,3248.6,3248.3,0.06442964]
[1642421661718,0.0022737,3248.5,3248.3,0.3]
[1642421661919,1.49226088,3248.7,3248.4,2.41892485]
[1642421662119,2.24324384,3248.9,3248.4,2.32096694]
[1642421662418,0.92807038,3248.8,3248.4,2.32096694]
[1642421662820,0.00113684,3248.7,3248.4,2.32096694]
[1642421663018,0.00113684,3248.7,3248.5,0.0774959]
[1642421663219,0.00113684,3248.7,3248.5,0.8469459]
[1642421663418,0.00113684,3248.7,3248.5,0.76945]
[1642421663619,0.92636511,3249.0,3248.5,4.71945]
[1642421663820,0.92636511,3249.0,3248.6,2.37817565]
[1642421664020,0.92807038,3249.0,3248.6,2.3083069]
[1642421664219,0.92807038,3249.0,3248.6,3.8472869]
[1642421664883,0.92807038,3249.0,3248.7,0.05132926]
[1642421665084,0.92807038,3249.0,3248.7,0.76943]
[1642421665681,4.3354,3249.1,3248.7,1.06943]
[1642421665881,4.3354,3249.1,3249.0,1.30334441]
[1642421666082,2.24324384,3249.5,3249.1,0.06900514]
[1642421666285,3.8125,3249.6,3249.1,0.79394068]
[1642421666286,6.42424384,3249.6,3249.1,0.79394068]
[1642421666490,0.0022737,3249.4,3249.1,0.72493554]
[1642421666984,0.00170527,3249.3,3249.1,0.72493554]
[1642421667184,0.00170527,3249.3,3249.0,3.07762]
[1642421667385,0.00113685,3249.2,3249.0,3.07762]
[1642421667788,1.00284212,3249.5,3249.0,3.07762]
[1642421667984,1.00284212,3249.5,3249.3,0.01832569]
[1642421670026,1.03346819,3249.5,3249.3,0.01832569]
[1642421670229,1.03346819,3249.5,3249.3,0.00179607]
[1642421672073,2.52567481,3249.5,3249.3,0.00179607]
[1642421672471,1.52567481,3249.5,3249.3,0.77121607]
[1642421672674,1.52567481,3249.5,3249.3,2.28776198]
[1642421672876,1.52567481,3249.5,3249.3,2.31379177]
[1642421673079,0.03346819,3249.5,3249.3,2.31379177]
[1642421673270,0.03346819,3249.5,3249.3,3.63032195]
[1642421674973,0.0437854,3249.5,3249.3,3.63032195]
[1642421676628,0.0437854,3249.5,3249.3,2.31379177]
[1642421678430,0.0437854,3249.5,3249.4,1.47914536]
[1642421678830,0.0437854,3249.5,3249.4,6.07914536]
[1642421679870,0.0437854,3249.5,3249.4,11.67914536]
[1642421680773,0.00284212,3249.5,3249.4,15.82914536]
[1642421681971,0.00284212,3249.5,3249.4,10.2]
[1642421682271,0.00284212,3249.5,3249.3,2.31379177]
[1642421682671,0.00284212,3249.5,3249.3,0.79724586]
[1642421683927,0.00284212,3249.5,3249.3,2.13593719]
[1642421684326,0.00284212,3249.5,3249.3,2.90527289]
[1642421684727,0.00284212,3249.5,3249.3,0.79724586]
[1642421686331,0.72597776,3249.5,3249.3,0.79724586]
[1642421688072,1.72597776,3249.5,3249.3,0.79724586]
[1642421689272,1.72597776,3249.5,3249.3,0.02782586]
[1642421689671,2.72597776,3249.5,3249.3,0.02782586]
[1642421690074,0.72313564,3249.4,3249.3,0.02782586]
[1642421698226,0.72313564,3249.4,3249.2,0.16607868]
[1642421698718,0.00170527,3249.3,3249.2,0.16607868]
[1642421699620,0.72313564,3249.4,3249.2,0.16607868]
[1642421700318,0.72313564,3249.4,3249.2,0.46607868]
[1642421701322,0.72313564,3249.5,3249.2,0.46607868]
[1642421701724,0.72427249,3249.5,3249.2,0.46607868]
[1642421701969,0.72427249,3249.5,3249.2,0.16607868]
[1642421702372,0.72313564,3249.4,3249.2,0.16607868]
[1642421702770,0.72313564,3249.4,3249.2,0.93543498]
[1642421702971,0.72313564,3249.4,3249.1,0.76945]
[1642421703173,0.72313564,3249.3,3249.1,0.76945]
[1642421704185,0.72313564,3249.2,3249.1,0.76945]
[1642421704471,0.72313564,3249.2,3249.1,0.00113684]
[1642421709331,3.572899,3249.2,3249.1,0.00113684]
[1642421709579,17.972899,3249.2,3249.1,0.00113684]
[1642421709776,18.110899,3249.2,3249.0,0.00170527]
[1642421709976,13.9,3249.1,3248.3,0.76965]
[1642421710175,0.438,3249.0,3248.4,0.00511581]
[1642421710375,0.738,3249.0,3248.4,0.00511581]
[1642421711275,0.438,3249.0,3248.4,0.00511581]
[1642421711476,0.738,3249.0,3248.5,0.09795791]
[1642421711676,0.738,3249.0,3248.4,0.00511581]
[1642421711881,1.50780482,3248.8,3248.6,0.00397896]
[1642421712078,1.80780482,3248.8,3248.2,0.00625265]
[1642421712478,2.80780482,3248.8,3248.0,0.0073895]
[1642421712679,3.10780482,3248.8,3248.1,0.04926677]
[1642421712879,3.10780482,3248.8,3248.0,0.0073895]
[1642421713079,3.10780482,3248.8,3248.2,0.77592265]
[1642421713080,2.23094046,3248.7,3248.2,0.77592265]
[1642421713323,2.23094046,3248.7,3248.0,0.0073895]
[1642421713525,3.23094046,3248.7,3248.3,0.00568423]
[1642421713721,3.23094046,3248.7,3248.0,0.0073895]
[1642421713922,0.72313564,3248.6,3248.0,0.0073895]
[1642421714123,2.32313564,3248.6,3247.7,0.00909477]
[1642421714324,1.0,3248.2,3247.7,0.00909477]
[1642421714529,5.96141549,3248.1,3247.7,0.00909477]
[1642421714724,1.72488168,3248.0,3247.7,0.00909477]
[1642421714923,3.46288168,3248.0,3247.7,0.00909477]
[1642421715423,3.46288168,3248.0,3247.1,2.39661832]
[1642421715424,3.75,3247.9,3247.1,2.39661832]
[1642421715623,19.428,3247.8,3247.1,2.39661832]
[1642421715823,19.728,3247.8,3247.2,0.00284212]
[1642421716023,20.028,3247.8,3247.2,0.00284212]
[1642421716724,17.99,3247.7,3247.2,0.00284212]
[1642421716972,3.35073631,3247.8,3247.2,0.00284212]
[1642421716973,23.10625387,3247.6,3247.2,0.00284212]
[1642421717177,1.438,3247.5,3247.2,0.00284212]
[1642421717974,4.42633989,3247.4,3247.2,0.00284212]
[1642421718173,6.25,3247.3,3247.2,0.00284212]
[1642421718372,6.25,3247.3,3246.7,0.00568424]
[1642421718772,0.77022,3247.2,3246.7,0.00568424]
[1642421718972,1.07022,3247.2,3246.7,0.00568424]
[1642421719173,1.07022,3247.2,3246.8,0.06413]
[1642421719374,1.07022,3247.2,3246.8,0.01413]
[1642421719576,1.07022,3247.2,3246.9,0.00454739]
[1642421719984,3.14976336,3247.0,3246.3,0.00795793]
[1642421720176,0.03104008,3246.8,3246.3,0.00795793]
[1642421720377,1.0,3246.9,3246.3,0.00795793]
[1642421720578,1.438,3246.9,3246.3,0.00795793]
[1642421720825,1.438,3246.9,3246.3,1.22295565]
[1642421721027,2.84976336,3247.0,3246.4,3.76219365]
[1642421721226,1.0,3246.9,3246.4,3.76958316]
[1642421721425,1.0,3246.9,3246.5,0.00682108]
[1642421721626,2.84976336,3247.0,3246.5,0.00682108]
[1642421721825,2.84976336,3247.0,3246.4,0.00738951]
[1642421722024,2.84976336,3247.0,3246.6,0.77004]
[1642421722432,2.84976336,3247.0,3246.7,0.00568424]
[1642421722827,0.03725651,3246.9,3246.7,0.00568424]
[1642421723226,0.05251135,3246.9,3246.7,0.00568424]
[1642421723426,0.03725651,3246.9,3246.7,0.00568424]
[1642421723627,5.651e-05,3246.9,3246.8,0.02262841]
[1642421723825,5.651e-05,3246.9,3246.8,4.06245084]
[1642421724026,5.651e-05,3246.9,3246.8,4.04493824]
[1642421724674,2.84976336,3247.0,3246.8,11.99493824]
[1642421724874,1.42488168,3247.0,3246.9,15.40671475]
[1642421725080,4.2405,3247.1,3246.9,15.41126214]
[1642421725374,4.2405,3247.1,3247.0,12.17012067]
[1642421725776,0.00113685,3247.9,3247.0,12.47012067]
[1642421725981,0.00113685,3247.9,3247.2,2.3091733]
[1642421726175,0.00113685,3247.9,3247.4,0.76962]
[1642421726375,0.00113685,3247.9,3247.4,1.5392722]
[1642421726575,0.00113685,3247.9,3247.5,0.30113685]
[1642421726874,0.00113685,3247.9,3247.5,1.84050685]
[1642421727074,0.00113685,3247.9,3247.7,0.03240324]
[1642421727286,0.00113685,3247.9,3247.7,0.7696]
[1642421727476,0.00113685,3247.9,3247.8,28.24347214]
[1642421727683,3.685e-05,3247.9,3247.8,28.24347214]
[1642421727875,3.685e-05,3247.9,3247.8,29.98147214]
[1642421728077,2.96378911,3249.0,3248.7,1.29236027]
[1642421728329,2.96378911,3249.0,3248.8,3.93895589]
[1642421728531,1.48665215,3249.3,3249.0,4.8]
[1642421728725,1.48665215,3249.3,3249.1,0.03397867]
[1642421728925,1.49461007,3249.3,3249.0,4.8]
[1642421729323,1.49461007,3249.3,3249.1,0.04795791]
[1642421729624,2.22997822,3249.5,3249.2,9.7]
[1642421730024,4.644121,3249.7,3249.3,0.04795791]
[1642421730228,4.644121,3249.7,3249.2,9.7]
[1642421730424,1.42488168,3249.4,3249.3,5.3289757]
[1642421730626,1.42488168,3249.4,3249.3,5.3]
[1642421731224,1.42488168,3249.4,3249.3,10.7]
[1642421731427,1.42488168,3249.4,3249.3,5.3]
[1642421732178,1.42488168,3249.4,3249.3,11.3]
[1642421732887,1.42488168,3249.4,3249.3,11.62798148]
[1642421733081,1.42488168,3249.4,3249.3,11.92798148]
[1642421733279,1.42488168,3249.4,3249.3,5.32798148]
[1642421734081,1.42488168,3249.4,3249.3,5.92798148]
[1642421734280,1.42488168,3249.4,3249.3,24.77798148]
[1642421734482,0.123221,3249.7,3249.5,20.55]
[1642421734683,4.5092,3250.8,3249.7,21.3]
[1642421734891,4.5092,3250.8,3250.5,1.49323367]
[1642421735082,0.00625266,3250.7,3250.5,1.49323367]
[1642421735283,1.42488168,3250.6,3250.5,1.49323367]
[1642421735489,1.43056592,3250.6,3250.5,1.49323367]
[1642421735734,1.43056592,3250.6,3250.5,2.26230367]
[1642421735924,1.43056592,3250.6,3250.5,0.76907]
[1642421737124,1.43056592,3250.6,3250.5,18.86254441]
[1642421737327,4.5092,3250.8,3250.6,4.9]
[1642421737525,4.5092,3250.8,3250.6,7.24794]
[1642421738335,2.23718229,3251.5,3250.8,0.76886]
[1642421738526,2.23718229,3251.5,3251.4,12.42520413]
[1642421738730,2.23718229,3251.5,3251.4,12.78628558]
[1642421738731,2.2422981,3251.5,3251.4,12.78628558]
[1642421738927,2.23174029,3251.5,3251.4,1.88628558]
[1642421739127,2.23174029,3251.5,3251.4,1.58628558]
[1642421739327,0.00511581,3251.5,3251.4,1.58628558]
[1642421740178,0.00511581,3251.5,3251.4,7.18628558]
[1642421740381,1.49457057,3252.3,3251.5,12.45]
[1642421740580,4.3661,3252.2,3252.1,1.26918039]
[1642421740791,0.00397896,3252.2,3252.1,1.5751552]
[1642421741079,0.00397896,3252.2,3252.1,0.8065]
[1642421741679,0.00397896,3252.2,3252.1,1.90694133]
[1642421742079,0.00397896,3252.2,3252.1,9.20694133]
[1642421742879,4.3975,3252.7,3252.3,0.77657653]
[1642421743081,4.3975,3252.7,3252.4,1.5370736]
[1642421743335,4.3975,3252.7,3252.5,4.09795791]
[1642421743336,0.0022737,3252.6,3252.5,4.09795791]
[1642421743532,0.0022737,3252.6,3252.5,8.41410436]
[1642421743733,1.49457057,3252.9,3252.6,15.82511653]
[1642421743930,4.5361,3253.3,3252.7,0.03801498]
[1642421744131,3.685e-05,3252.8,3252.7,2.59373708]
[1642421744330,1.49648178,3253.5,3252.9,0.04795791]
[1642421744530,1.49648178,3253.5,3253.1,15.4]
[1642421744732,1.49648178,3253.5,3253.2,1.4813066]
[1642421744733,0.00113685,3253.4,3253.2,1.4813066]
[1642421744931,0.00113685,3253.4,3253.3,17.5]
[1642421745234,11.39825427,3253.8,3253.5,16.96088634]
[1642421745432,5.89243618,3254.2,3253.7,1.20428309]
[1642421745732,5.89243618,3254.2,3253.2,0.438]
[1642421745937,5.89243618,3254.2,3253.1,0.13819997]
[1642421745938,0.01332344,3254.1,3253.1,0.13819997]
[1642421746134,0.01332344,3254.1,3253.0,0.00113685]
[1642421746135,4.06410436,3254.1,3253.0,0.00113685]
[1642421746332,0.00341054,3254.0,3253.2,0.00113685]
[1642421746532,0.44141054,3254.0,3252.9,0.00284212]
[1642421746732,0.00284211,3253.9,3253.0,0.0022737]
[1642421746976,0.00284211,3253.9,3252.7,0.13819997]
[1642421746977,1.438,3253.8,3252.8,0.00341054]
[1642421747181,1.74027369,3253.8,3252.8,0.00341054]
[1642421747374,0.00170527,3253.7,3252.9,0.0064455]
[1642421747774,0.00113684,3253.6,3253.1,0.02795479]
[1642421747974,0.00113684,3253.6,3253.2,0.01542007]
[1642421748175,0.00170527,3253.7,3253.2,0.01655692]
[1642421748579,0.00113684,3253.6,3253.2,0.00113685]
[1642421748975,0.438,3253.8,3253.2,0.00113685]
[1642421748976,0.00170527,3253.7,3253.2,0.00113685]
[1642421749175,0.00170527,3253.7,3253.3,0.04739988]
[1642421749377,0.00113684,3253.6,3253.3,0.04739988]
[1642421749577,0.00113684,3253.6,3253.2,0.00113685]
[1642421749777,0.00170527,3253.7,3253.2,0.00113685]
[1642421750177,0.00113684,3253.6,3253.2,0.00113685]
[1642421750583,16.6,3253.3,3253.2,0.00113685]
[1642421750858,17.038,3253.3,3253.2,0.00113685]
[1642421751044,18.2758,3253.3,3253.2,0.00113685]
[1642421751246,2.438,3253.3,3251.9,0.02795479]
[1642421751444,1.49929467,3253.1,3252.0,0.03311612]
[1642421751654,0.438,3253.0,3252.0,0.00682108]
[1642421751844,0.76872,3252.8,3252.0,0.00682108]
[1642421752042,0.438,3252.7,3252.0,0.00682108]
[1642421752447,0.01316321,3252.6,3252.0,0.00682108]
[1642421752645,0.438,3252.5,3252.0,0.00682108]
[1642421752843,0.44949702,3252.4,3252.2,0.01828392]
[1642421753044,0.438,3252.3,3252.2,0.01828392]
[1642421753243,1.76889,3252.6,3252.3,0.00511581]
[1642421753441,1.9757,3252.5,3252.2,0.02396816]
[1642421753641,0.03541364,3252.4,3252.3,0.00511581]
[1642421753847,0.438,3252.4,3252.3,0.00511581]
[1642421756576,0.438,3252.9,3252.3,0.00511581]
[1642421757976,0.00485479,3252.8,3252.3,0.00511581]
[1642421758227,7.41,3253.0,3252.4,0.034444]
[1642421758429,7.41,3253.0,3252.2,0.00568424]
[1642421758629,7.41,3253.0,3252.5,0.00397897]
[1642421758829,7.41,3253.0,3252.2,2.76040482]
[1642421759133,7.41,3253.0,3252.3,0.00511581]
[1642421759328,7.41,3253.0,3252.4,0.00559867]
[1642421759531,7.41,3253.0,3252.3,0.00511581]
[1642421759729,7.41,3253.0,3252.5,0.00397897]
[1642421759928,7.41,3253.0,3252.2,0.00568424]
[1642421760131,7.41,3253.0,3252.3,0.02595599]
[1642421760328,7.41,3253.0,3252.3,0.02783254]
[1642421760527,7.41,3253.0,3252.2,3.0376634]
[1642421760528,7.41,3253.0,3252.4,0.00454739]
[1642421760928,7.41,3253.0,3252.3,0.00511581]
[1642421761329,4.282,3253.2,3252.4,0.04019066]
[1642421761741,4.282,3253.2,3252.5,0.00397897]
[1642421762180,4.282,3253.2,3252.6,0.02585391]
[1642421762382,1.438,3253.1,3252.3,0.00511581]
[1642421762581,1.438,3253.1,3252.1,0.01832639]
[1642421762582,2.2068,3253.1,3252.7,0.00284212]
[1642421762782,2.2068,3253.1,3252.4,0.01828963]
[1642421762982,0.01023709,3253.0,3252.4,0.01828963]
[1642421763180,0.438,3252.9,3252.5,0.00397897]
[1642421763386,0.438,3252.8,3252.5,0.00397897]
[1642421763582,0.438,3252.7,3252.5,0.00397897]
[1642421764183,0.438,3252.7,3252.5,0.01469405]
[1642421764388,0.438,3252.7,3252.5,0.00397897]
[1642421764583,0.438,3252.7,3252.6,0.00341054]
[1642421764783,0.438,3252.7,3252.5,0.00397897]
[1642421765384,0.438,3252.7,3252.5,0.03900826]
[1642421765585,0.438,3252.7,3252.5,0.00397897]
[1642421765825,0.438,3252.7,3252.6,0.00341054]
[1642421766032,0.438,3252.7,3252.5,0.03152191]
[1642421766425,0.438,3252.7,3252.6,0.00341054]
[1642421767032,0.438,3252.7,3252.5,0.00397897]